Cogmind - Beta 13 @@@ ROGUE MODE // 2024.04.03 @ 00:35:52 Player: Bean Result: Destroyed by Y-54 Guardian with Gatling Laser Performance ------------- Evolutions (1) 500 Regions Visited (6) 1200 Robots Destroyed (26) 130 Value Destroyed (700) 700 Prototype IDs (7) 140 Alien Tech Used (0) 0 Bonus (607) 607 TOTAL SCORE: 3277 Bonus ------- Follower Combat Kills 7 Met Imprinter 300 Was Imprinted 300 Cogmind --------- Core Integrity 0/400 Matter 295/300 Energy 91/100 System Corruption 0% Temperature Cool (18) Movement Core (100) Ox1 Location -6/Proximity Caves Parts ------- > --- POWER (1) -------- (None) > --- PROPULSION (3) --- (None) > --- UTILITY (3) ------ Signal Interpreter Hacking Suite Hacking Drone Bay (1/1) > --- WEAPON (2) ------- Phasing Sabre > --- INVENTORY (5) ---- Hacking Suite Ripper Signal Generator Peak State ------------ > --- POWER ------------ Improved Ion Engine > --- PROPULSION ------- Flight Unit Improved Flight Unit Improved Flight Unit > --- UTILITY ---------- Signal Interpreter Hacking Suite Hacking Drone Bay > --- WEAPON ----------- Makeshift Laser Phasing Sabre > --- INVENTORY -------- Hacking Suite Light Assault Rifle Ripper Signal Generator [Rating: 33] Favorites ----------- Power Improved Ion Engine Engine Improved Ion Engine Power Core Light Nuclear Core Propulsion Improved Flight Unit Wheel Wheel Hover Unit Hover Unit Flight Unit Improved Flight Unit Utility Hacking Suite Device Hacking Drone Bay Storage Small Storage Unit Processor Signal Interpreter Hackware Hacking Suite Weapon Mining Claw Energy Gun Makeshift Laser Ballistic Gun Light Assault Rifle Impact Weapon Heavy Flail Slashing Weapon Mining Claw Piercing Weapon CR-A16's Pointy Stick Build | -11 -10 -10 -9 -9 -7 -6 ------- Run | Yrd Mat Min Mat Min Zio Pro Slots Evolved 2 | . . . 2 . . . Power . | . . . . . . . Propulsion 1 | . . . 1 . . . Utility 1 | . . . 1 . . . Weapon . | . . . . . . . Parts Attached 38 | 7 5 4 15 1 5 1 Power 5 | 1 . 1 1 1 . 1 Engine 4 | 1 . 1 1 1 . . Core 1 | . . . . . . 1 Reactor . | . . . . . . . Propulsion 14 | 2 2 1 9 . . . Treads . | . . . . . . . Leg . | . . . . . . . Wheel 2 | 2 . . . . . . Hover 6 | . 2 1 3 . . . Flight 6 | . . . 6 . . . Utility 7 | 1 2 2 1 . 1 . Device 4 | . 1 1 1 . 1 . Storage 1 | 1 . . . . . . Processor 1 | . . 1 . . . . Hackware 1 | . 1 . . . . . Protection . | . . . . . . . Artifact . | . . . . . . . Weapon 12 | 3 1 . 4 . 4 . Energy Gun 1 | . . . . . 1 . Energy Cannon . | . . . . . . . Ballistic Gun 3 | 3 . . . . . . Ballistic Cannon . | . . . . . . . Launcher . | . . . . . . . Special Weapon . | . . . . . . . Impact Weapon 3 | . . . 3 . . . Slashing Weapon 4 | . 1 . 1 . 2 . Piercing Weapon 1 | . . . . . 1 . Special Melee Weapon . | . . . . . . . Unidentified Prototypes 3 | . . 1 1 . 1 . Parts Lost 12 | . . 2 5 . . 5 Power 3 | . . . 1 . . 2 Propulsion 7 | . . 1 3 . . 3 Utility 2 | . . 1 1 . . . Weapon . | . . . . . . . Highest Loss Streak 5 | . . 1 4 . . 5 To Critical Strikes . | . . . . . . . Average Slot Usage (%) 89 | . 89 93 83 88 92 63 Engine 11 | . 14 14 10 11 11 2 Wheel 1 | . 9 . . . . . Hover 10 | . 17 27 18 . . . Flight 18 | . . . 10 33 33 15 Device 7 | . 8 8 7 . 8 11 Processor 8 | . . 5 11 11 11 11 Hackware 10 | . 4 14 11 11 11 11 Ballistic Gun 4 | . 27 8 . . . . Impact Weapon 4 | . . . 4 11 6 . Slashing Weapon 9 | . . 14 11 11 8 11 Piercing Weapon 1 | . . . . . 2 . Naked Turns . | . . . . . . . Heaviest Build 15 | 12 12 9 9 12 15 12 Greatest Support 20 | 20 20 12 18 14 14 14 Greatest Overweight (x) 1 | . 1 1 1 . 1 1 Average Overweight (x) . | . . . . . . . Largest Inventory Capacity 8 | 8 8 5 5 5 5 5 Average Capacity 5 | 7 6 5 5 5 5 5 Most Carried 5 | 3 5 5 5 4 5 5 Average Carried 3 | . 1 3 2 3 3 3 Final Capacity 8 | 8 5 5 5 5 5 5 Final Carried 5 | . 5 4 3 3 5 3 Class Distribution -------------------- 70% | Mutant 29% | Scavenger-Mutant Dominant Class ---------------- Mutant | -10/Materials Scavenger-Mutant | -10/Mines Scavenger-Mutant | -9/Materials Mutant | -9/Mines Mutant | -7/Zion Mutant | -6/Proximity Caves Resources | -11 -10 -10 -9 -9 -7 -6 ----------- Run | Yrd Mat Min Mat Min Zio Pro Matter Collected 620 | 237 131 66 136 20 30 . Remotely . | . . . . . . . Salvage Created 883 | . 321 36 361 . . 165 Parts 52 | . 24 2 20 . . 6 Haulers Intercepted 2 | . 1 . 1 . . . Recyclers Shooed . | . . . . . . . Parts Field Recycled . | . . . . . . . Retrieved Matter . | . . . . . . . Parts Self-Destructed 4 | . . . . . . 4 Prevented . | . . . . . . . Kills | -11 -10 -10 -9 -9 -7 -6 ------- Run | Yrd Mat Min Mat Min Zio Pro Combat Hostiles Destroyed 17 | . 4 2 7 . . 4 Melee 10 | . . . 6 . . 4 Guns 6 | . 4 2 . . . . Classes Destroyed 8 | . 6 1 1 . . . Builder 1 | . 1 . . . . . Hauler 2 | . 1 . 1 . . . Recycler 1 | . 1 . . . . . Operator 3 | . 2 . 1 . . . Watcher 2 | . 1 . 1 . . . Swarmer 6 | . . 2 2 . . 2 Grunt 6 | . 4 . . . . 2 Sentry 5 | . . . 5 . . . Best Kill Streak 6 | . 6 1 3 . . 2 Combat Bots Only 2 | . 2 1 2 . . 2 Max Kills in Single Turn 2 | . 2 1 1 . . 1 Gunslinging . | . . . . . . . Exploded . | . . . . . . . Melee 1 | . . . 1 . . 1 Uniques/NPCs Destroyed . | . . . . . . . Combat | -11 -10 -10 -9 -9 -7 -6 -------- Run | Yrd Mat Min Mat Min Zio Pro Hostile Shots Fired 161 | . 39 16 61 12 . 33 Missed 44 | . 8 5 19 4 . 8 Damage Taken 1339 | . 353 88 417 127 . 354 Core 589 | . 142 40 192 39 . 176 Absorbed by Shields . | . . . . . . . Core Remaining (%) 63 | 100 . 27 . . . . Volleys Fired 48 | . 38 5 . . 5 . Largest 2 | . 2 1 . . 1 . Hottest 150 | . 40 20 . . 150 . Shots Fired 86 | . 76 5 . . 5 . Gun 86 | . 76 5 . . 5 . Cannon . | . . . . . . . Launcher . | . . . . . . . Special . | . . . . . . . Kinetic 81 | . 76 5 . . . . Thermal 5 | . . . . . 5 . Explosive . | . . . . . . . Electromagnetic . | . . . . . . . Robot Hit Streak 9 | . 9 2 . . . . Robot Miss Streak 2 | . 2 1 . . . . Penetration Max . | . . . . . . . Secondary Targets . | . . . . . . . Shots Hit Robots 83 | . 53 4 19 . . 7 Core Hits 35 | . 21 2 7 . . 5 Critical Kills . | . . . . . . . Critical Parts Destroyed 2 | . . . 2 . . . Critical Strikes 2 | . . . 2 . . . Smash 2 | . . . 2 . . . Melee Attacks 70 | . 1 4 26 . 27 12 Impact 11 | . . . 11 . . . Slashing 59 | . 1 4 15 . 27 12 Piercing . | . . . . . . . Sneak Attacks 4 | . . . 4 . . . Combat Hostiles 2 | . . . 2 . . . Follow-up Attacks 1 | . . . 1 . . . Damage Inflicted 1526 | . 517 52 633 . . 324 Guns 473 | . 445 28 . . . . Cannons . | . . . . . . . Explosions 48 | . 48 . . . . . Melee 1005 | . 24 24 633 . . 324 Ramming . | . . . . . . . Kinetic 473 | . 445 28 . . . . Thermal 48 | . 48 . . . . . Explosive . | . . . . . . . Electromagnetic . | . . . . . . . Impact 442 | . . . 442 . . . Slashing 563 | . 24 24 191 . . 324 Piercing . | . . . . . . . Highest Corruption 1 | . . 1 . . . . Average Corruption 1 | . . 1 . . . . Corruption Purged . | . . . . . . . Corruption Blocked . | . . . . . . . Overload Shots 1 | . . . . . 1 . Overflow Damage 122 | . . 4 114 . . 4 Projectiles . | . . . . . . . Explosions . | . . . . . . . Melee 122 | . . 4 114 . . 4 Knockbacks . | . . . . . . . Impact . | . . . . . . . Kinetic . | . . . . . . . Secondary . | . . . . . . . Self-Inflicted Damage . | . . . . . . . Shots . | . . . . . . . Rammed . | . . . . . . . Targets Rammed . | . . . . . . . Kicked . | . . . . . . . Crushed . | . . . . . . . Highest Temperature 160 | . 24 2 14 9 160 22 Average Temperature 23 | . 9 1 14 9 62 12 Received Heat Transfer 446 | . 192 6 72 41 . 135 Siege Activations . | . . . . . . . Robots Corrupted . | . . . . . . . Combat Hostiles . | . . . . . . . Parts Fried 3 | . . . 3 . . . Impact Corruptions 6 | . . . 6 . . . Robots Melted . | . . . . . . . Combat Hostiles . | . . . . . . . Parts Melted . | . . . . . . . Heat Transferred 100 | . 100 . . . . . Parts Sabotaged . | . . . . . . . Parts Stolen . | . . . . . . . Parts Stripped . | . . . . . . . Power Chain Reactions . | . . . . . . . Alert | -11 -10 -10 -9 -9 -7 -6 ------- Run | Yrd Mat Min Mat Min Zio Pro Peak Influence 278 | . 278 209 210 212 . . Initial 108 | . . 108 . 32 . . Average 105 | . 135 141 65 109 . . Maximum Alert Level 1 | . 1 1 1 1 . . Low Security (%) 92 | 100 72 98 94 99 . . Level 1 7 | . 27 1 5 . . . Level 2 . | . . . . . . . Level 3 . | . . . . . . . Level 4 . | . . . . . . . Level 5 . | . . . . . . . High Security . | . . . . . . . Max Security . | . . . . . . . Squads Dispatched 5 | . 2 1 2 . . . Investigation 1 | . . 1 . . . . Extermination . | . . . . . . . Reinforcement 4 | . 2 . 2 . . . Assault . | . . . . . . . Garrison . | . . . . . . . Intercept . | . . . . . . . Searches Triggered . | . . . . . . . Construction Impeded . | . . . . . . . Haulers Reinforced . | . . . . . . . Active Scanning Responses . | . . . . . . . Cargo Convoy Interrupts . | . . . . . . . Stealth | -11 -10 -10 -9 -9 -7 -6 --------- Run | Yrd Mat Min Mat Min Zio Pro Distress Signals 3 | . 3 . . . . . Communications Jammed . | . . . . . . . Distress Signals . | . . . . . . . Times Spotted 58 | . 17 6 12 18 . 5 Peak Tracking Total 18 | . 4 3 4 18 . 5 Tactical Retreats 6 | . . 1 . 5 . . Traps | -11 -10 -10 -9 -9 -7 -6 ------- Run | Yrd Mat Min Mat Min Zio Pro Traps Triggered . | . . . . . . . Indirectly . | . . . . . . . Trap Hack Attempts . | . . . . . . . Triggered . | . . . . . . . Disarmed . | . . . . . . . Reprogrammed . | . . . . . . . Reused . | . . . . . . . Traps Extracted . | . . . . . . . Installed . | . . . . . . . Triggered . | . . . . . . . Machines | -11 -10 -10 -9 -9 -7 -6 ---------- Run | Yrd Mat Min Mat Min Zio Pro Machines Disabled 5 | . 4 1 . . . . Max in Single Turn 4 | . 4 . . . . . Machines Repaired . | . . . . . . . Machines Dismantled . | . . . . . . . Machines Sabotaged . | . . . . . . . Overloaded Fab Kills . | . . . . . . . Hacking | -11 -10 -10 -9 -9 -7 -6 --------- Run | Yrd Mat Min Mat Min Zio Pro Machines Accessed 5 | . 2 1 2 . . . Terminals 4 | . 2 1 1 . . . Fabricators . | . . . . . . . Repair Stations . | . . . . . . . Recycling Units 1 | . . . 1 . . . Scanalyzers . | . . . . . . . Garrison Access . | . . . . . . . Total Hacks 11 | . 4 4 3 . . . Successful 9 | . 4 3 2 . . . Failed 2 | . . 1 1 . . . Catastrophic 1 | . . 1 . . . . Database Lockouts . | . . . . . . . Manual 2 | . 1 1 . . . . Terminals 10 | . 4 4 2 . . . Fabricators . | . . . . . . . Repair Stations . | . . . . . . . Recycling Units 1 | . . . 1 . . . Scanalyzers . | . . . . . . . Garrison Access . | . . . . . . . Terminal Hacks 8 | . 4 3 1 . . . Prototype ID Bank 2 | . 1 1 . . . . Level Access Points 1 | . . 1 . . . . Alert Level 1 | . 1 . . . . . Dispatch Records 2 | . 1 1 . . . . Hauler Manifests 2 | . 1 . 1 . . . Fabricator Hacks . | . . . . . . . Repair Station Hacks . | . . . . . . . Recycling Unit Hacks 1 | . . . 1 . . . Report Inventory 1 | . . . 1 . . . Scanalyzer . | . . . . . . . Garrison Access Hacks . | . . . . . . . Unauthorized Hacks . | . . . . . . . Terminals . | . . . . . . . Fabricators . | . . . . . . . Repair Stations . | . . . . . . . Recycling Units . | . . . . . . . Scanalyzers . | . . . . . . . Garrison Access . | . . . . . . . Data Cores Recovered 1 | . 1 . . . . . Used . | . . . . . . . Hacking Detections 3 | . 1 1 1 . . . Full Trace Events 1 | . . 1 . . . . Feedback Events 1 | . . 1 . . . . Corruption 1 | . . 1 . . . . Feedback Blocked . | . . . . . . . Robot Schematics Acquired 3 | . . . . . 3 . Robots Built . | . . . . . . . Authchips . | . . . . . . . Time . | . . . . . . . Total Robot Build Rating . | . . . . . . . Part Schematics Acquired 15 | . . . . . 15 . Parts Built . | . . . . . . . Authchips . | . . . . . . . Time . | . . . . . . . Total Part Build Rating . | . . . . . . . Parts Repaired . | . . . . . . . Time . | . . . . . . . Parts Recycled . | . . . . . . . Recycled Matter . | . . . . . . . Retrieved Matter . | . . . . . . . Retrieved Components . | . . . . . . . Parts Scanalyzed . | . . . . . . . Part Schematics Acquired . | . . . . . . . Parts Damaged . | . . . . . . . Bothacking | -11 -10 -10 -9 -9 -7 -6 ------------ Run | Yrd Mat Min Mat Min Zio Pro Used RIF Installer . | . . . . . . . Robots Hacked . | . . . . . . . Non-combat . | . . . . . . . Combat . | . . . . . . . Robot Hacks Applied . | . . . . . . . Relay Couplers Released . | . . . . . . . Fabnet Peak Effective % . | . . . . . . . Robots Rewired . | . . . . . . . Allies Hacked . | . . . . . . . Hacks Repelled . | . . . . . . . Allies | -11 -10 -10 -9 -9 -7 -6 -------- Run | Yrd Mat Min Mat Min Zio Pro Total Allies 7 | . . 3 . . 4 . Largest Group 4 | . . 3 . . 4 . Highest-Rated Group 156 | . . 40 . . 156 . Highest-Rated Ally 40 | . . 16 . . 40 . Total Orders . | . . . . . . . Ally Attacks 20 | . . 20 . . . . Total Damage 195 | . . 195 . . . . Kills 1 | . . 1 . . . . Allies Corrupted . | . . . . . . . Allies Melted . | . . . . . . . Intel | -11 -10 -10 -9 -9 -7 -6 ------- Run | Yrd Mat Min Mat Min Zio Pro Robot Analysis Total . | . . . . . . . Derelict Logs Recovered 6 | . . 2 . 2 1 1 Drone Launches . | . . . . . . . Drone Recoveries . | . . . . . . . Exploration | -11 -10 -10 -9 -9 -7 -6 ------------- Run | Yrd Mat Min Mat Min Zio Pro Turns Passed 2619 | 48 288 432 512 283 1008 48 Spaces Moved 4455 | 44 285 685 437 772 2198 34 Core 15 | 6 . . 8 . . 1 Treads . | . . . . . . . Legs . | . . . . . . . Wheels 79 | 38 41 . . . . . Hover 1097 | . 244 685 168 . . . Flight 3264 | . . . 261 772 2198 33 Fastest Speed 34 | 50 56 56 34 34 34 34 Average Speed 40 | 75 59 56 42 34 34 36 Slowest Speed 120 | 80 120 120 100 34 107 100 Overloaded Moves . | . . . . . . . Propulsion Burnouts . | . . . . . . . Robots Hopped . | . . . . . . . Cave-ins Triggered . | . . . . . . . Exploration Rate (%) 52 | 3 44 97 34 92 93 6 Regions Visited 6 Branch Regions 4 Pre-discovered Areas 5 | . . 1 . 2 1 1 Known Exits Taken 4 | . . 1 1 1 1 . Unknown Exits Taken 2 | 1 1 . . . . . Scrap Searched 4 | . . 1 . 1 2 . Spaces Dug . | . . . . . . . Terrain Destroyed 10 | . 10 . . . . . Melee . | . . . . . . . Projectile . | . . . . . . . AOE 10 | . 10 . . . . . Terrain Rammed . | . . . . . . . Walls Destroyed . | . . . . . . . Machines Disabled . | . . . . . . . Actions | -11 -10 -10 -9 -9 -7 -6 --------- Run | Yrd Mat Min Mat Min Zio Pro Total 5094 | 58 341 719 717 791 2414 54 Wait 419 | . . 13 217 17 168 4 Move 4449 | 43 284 684 436 771 2197 34 Hop . | . . . . . . . Pick Up 42 | 7 9 4 14 1 6 1 Fast Attach . | . . . . . . . Attach 35 | 6 5 4 14 . 5 1 Detach 3 | . 1 . . . 2 . Swap 4 | 1 . 1 1 1 . . Drop 25 | 1 3 4 10 1 4 2 Fire 48 | . 38 5 . . 5 . Melee 69 | . 1 4 25 . 27 12 Ram . | . . . . . . . Kick . | . . . . . . . Crush . | . . . . . . . Escape Stasis . | . . . . . . . Rewire . | . . . . . . . Trap . | . . . . . . . Miscellaneous . | . . . . . . . Route ------- -11/Scrapyard -10/Materials -10/Mines (discovered 2 exits: *Mat x2) -9/Materials (discovered 2 exits: *Min / *Sto) -9/Mines (discovered 3 exits: [*Mat x2] / *Zio) -7/Zion (discovered 2 exits: Dee / *Pro) -6/Proximity Caves History --------- Turn | Location | Event 5 | -11/Scrapyard | Discovered new exit (range 15) 49 | -11/Scrapyard | Entered Materials 314 | -10/Materials | Build established: Mutant 324 | -10/Materials | Discovered new exit (range 11) 336 | -10/Materials | Core integrity fell below 50% 337 | -10/Materials | Entered Mines 357 | -10/Mines | Learned Materials security intel 392 | -10/Mines | Learned Materials terminal intel 397 | -10/Mines | Assisted by bots powering up and referring to "LRC-V3" 451 | -10/Mines | Discovered new exit (range 10) 546 | -10/Mines | Met a Derelict testing a Signal Generator 548 | -10/Mines | Found Signal Generator 583 | -10/Mines | Found a damaged Exp. Sensor Array with a note attached 584 | -10/Mines | Found Prototype Device 586 | -10/Mines | Identified Exp. Sensor Array 674 | -10/Mines | Discovered new exit (range 10) 677 | -10/Mines | Learned location of Storage (-9) 679 | -10/Mines | Identified exit to Materials 742 | -10/Mines | Build established: Scavenger-Mutant 769 | -10/Mines | Entered Materials 769 | -9/Materials | Evolved 2 slots: Propulsion x1, Utility x1 771 | -9/Materials | Loaded intel: 12 terminal locations 771 | -9/Materials | Discovered new exit (range 7) 778 | -9/Materials | Identified exit to Storage 1030 | -9/Materials | Lost 4 parts (1p3n) 1204 | -9/Materials | Discovered new exit (range 16) 1269 | -9/Materials | Identified exit to Mines 1281 | -9/Materials | Entered Mines 1305 | -9/Mines | Met a Derelict bent on vengeance 1318 | -9/Mines | Core integrity fell below 50% 1342 | -9/Mines | Assembled infested the area 1356 | -9/Mines | Learned location of Zion (-7) 1365 | -9/Mines | Found a hidden stash of uninstalled traps 1402 | -9/Mines | Discovered new exit (range 15) 1442 | -9/Mines | Learned location of Recycling (-9) 1530 | -9/Mines | Build established: Mutant 1558 | -9/Mines | Discovered new exit (range 11) 1560 | -9/Mines | A Derelict revealed a hidden shortcut to a safe place 1563 | -9/Mines | Identified exit to Zion 1564 | -9/Mines | Entered Zion 1660 | -7/Zion | Learned location of Warlord (-4) 1712 | -7/Zion | Found GAL Module 1750 | -7/Zion | Identified exit to Deep Caves 1777 | -7/Zion | Imprinted 1779 | -7/Zion | Declared Zion's savior 1827 | -7/Zion | Given the Hacking Drone Bay 1827 | -7/Zion | Found Prototype Device 1829 | -7/Zion | Identified Hacking Drone Bay 1902 | -7/Zion | Found CR-A16's Pointy Stick 2530 | -7/Zion | Discovered new exit (range 10) 2533 | -7/Zion | Identified exit to Proximity Caves 2572 | -7/Zion | Entered Proximity Caves 2603 | -6/Proximity Caves | Attracted the attention of an 0b10 checkpoint 2612 | -6/Proximity Caves | Core integrity fell below 20% 2620 | -6/Proximity Caves | Destroyed by Y-54 Guardian with Gatling Laser Last Messages --------------- World map updated: -6/Factory. Flight Unit destroyed. S-27 Virus destroyed. Imp. Ion Engine destroyed. S-27 Virus destroyed. Dropped Lgt. Assault Rifle. Dropped Mak. Laser. Acquired Lgt. Nuclear Core. Autogun fries itself beyond repair. Y-54 Guardian: "INTERCEPTING UNREGISTERED DERELICT." Destroyed Adv. Heat Sink. Autogun fries itself beyond repair. Critical hit (Burn: +37). Imp. Flight Unit destroyed. Lgt. Nuclear Core destroyed. Imp. Flight Unit destroyed. G-50 Soldier destroyed. Adv. Heat Sink fries itself beyond repair. G-50 Soldier destroyed. Map ----- +----------------------------------------------------+ | ?????????????????????????????????????????????????? | | ?????????????????????????????????????????????????? | | ?????????????????????????????????????????????????? | | ?????????????????????????????????????????????????? | | ?????????????????????????????????????????????????? | | ?????????????????????????????????????????????????? | | ?????????????????????????????????????????????????? | | ???????????????????????????????????? ?# ????????? | | ?????????????????????????????????? ? ???????? | | ???????????????????????????????? # #?# ???? | | ???????????????????????????????? ## ??? | | ??????????????????????????? ??## ??? | | ??????????????????????????? ### ???? | | ??????????????????????????# ????? | | ???????????????????????????# ????? | | ??????????????????????????## ?????? | | ?????????????????????????## ??????? | | ?????????????????????????? #??????? | | ??????????????????????????? ##?????? | | ???????????????????????????? #?????? | | ????????????????????????????? ?? #?????? | | ??????????????# ############ #???# #??????? | | ????????????????? ## #???# #???????? | | ??????????????????????#Y # ###?## ###???????? | | ??????????????# ##### #% # #### ## ## | | ????????????????# *% @%[# | | ??????????????# ###### %[ ####### #???? | | ????????????????????????##########??????# ##???? | | ?????????????????????????????????????????####????? | | ?????????????????????????????????????????????????? | | ?????????????????????????????????????????????????? | | ?????????????????????????????????????????????????? | | ?????????????????????????????????????????????????? | | ?????????????????????????????????????????????????? | | ?????????????????????????????????????????????????? | | ?????????????????????????????????????????????????? | | ?????????????????????????????????????????????????? | | ?????????????????????????????????????????????????? | | ?????????????????????????????????????????????????? | | ?????????????????????????????????????????????????? | | ?????????????????????????????????????????????????? | | ?????????????????????????????????????????????????? | | ?????????????????????????????????????????????????? | | ?????????????????????????????????????????????????? | | ?????????????????????????????????????????????????? | | ?????????????????????????????????????????????????? | | ?????????????????????????????????????????????????? | | ?????????????????????????????????????????????????? | | ?????????????????????????????????????????????????? | | ?????????????????????????????????????????????????? | +----------------------------------------------------+ Best States ------------- Heat Dissipation 28 Energy Generation 14 Energy Capacity 265 Matter Stores 300 Matter Capacity 300 Sight Range 16 Robot Scan Range 14 Terrain Scan Density 10 Additional Mass Support 6 Evasion (%) 63 Offensive Hacking 10 Item Schematics ----------------- Imp. Shield Generator | -7/Zion | Archive Adv. Terrain Scanner | -7/Zion | Archive Hvy. Rocket Launcher | -7/Zion | Archive Adv. Melee Analysis Suite | -7/Zion | Archive Imp. Salvage Targeting Computer | -7/Zion | Archive Fusion Compressor | -7/Zion | Archive Mak. Hacking Suite | -7/Zion | Archive Imp. Launcher Guidance Computer | -7/Zion | Archive Imp. Plasma Cutter | -7/Zion | Archive Adv. Assault Cannon | -7/Zion | Archive Imp. Actuator Array | -7/Zion | Archive Med. Treads | -7/Zion | Archive Force Field | -7/Zion | Archive Thermal Shield | -7/Zion | Archive Great Axe | -7/Zion | Archive Robot Schematics ------------------ K-01 Serf | -7/Zion | Archive L-41 Fighter | -7/Zion | Archive B-48 Gladiator | -7/Zion | Archive Fabricated ------------ Nothing Alien Tech Used ----------------- None Achievements -------------- I Survived The Infestation Slippery One Challenges ------------ None Game ------ Seed MobileVariableRailgun Manual? 0 Play Time 00:51:10 Cumulative 4.5 hours Start 2024.04.02 @ 23:39:45 End 2024.04.03 @ 00:35:52 Sessions 1 Manual Loads 0 Difficulty Rogue Special Mode None Game No. 9 Rogue 9 Adventurer 0 Explorer 0 Win Type - Total 0 Types 0/0/0/0/0/0/0/0/0 Lore% 7 Gallery% 12 Achievement% 11 Wizard Run 0 Options --------- Layout 2 ASCII 0 Keyboard 0 Movement Numpad Keybinds 0 Fullscreen 1 Font 24/Smallcaps Map View 50x44 Zoom Use 0% Tactical HUD 0 Map Filters NONE Filters NONE Steam X RUN: b4fdabe0-c886-4e1d-96e8-299b87b830c8